Cogmind - Beta 10.2 *** ADVENTURER MODE // 2021.02.20 @ 17:38:02 // Winter2019/RPGLIKE Player: pointone Result: Destroyed by Y-54 Guardian with Flak Gun Performance ------------- Evolutions (4) 2000 Regions Visited (10) 2000 Robots Destroyed (77) 385 Value Destroyed (2591) 2591 Prototype IDs (23) 460 Alien Tech Used (0) 0 Bonus (779) 779 TOTAL SCORE: 8215 Bonus ------- High Alert Combat Kills 62 Follower Combat Kills 417 Aligned with FarCom 300 Cogmind --------- Core Integrity 0/1000 Matter 348/500 Energy 282/290 System Corruption 1% Temperature Cool (96) Movement Hovering (64) Location -6/Factory Parts ------- > --- POWER (1) -------- Improved Deuterium Engine > --- PROPULSION (5) --- Combat Airjet Combat Airjet Combat Airjet Combat Airjet Combat Airjet > --- UTILITY (6) ------ Advanced Heat Sink High-capacity Matter Pod Enhanced Optical Array Microactuators Hardened Heavy Armor Plating > --- WEAPON (4) ------- Gatling Laser Gauss Rifle Gauss Rifle Falx > --- INVENTORY (6) ---- Combat Airjet Combat Airjet Improved Signal Interpreter AWS/Thermal Long-range Missile Launcher Peak State ------------ > --- POWER ------------ Improved Deuterium Engine > --- PROPULSION ------- Combat Airjet Combat Airjet Combat Airjet Combat Airjet Combat Airjet > --- UTILITY ---------- Advanced Heat Sink High-capacity Matter Pod Enhanced Optical Array Microactuators Hardened Heavy Armor Plating > --- WEAPON ----------- Gatling Laser Gauss Rifle Gauss Rifle Falx > --- INVENTORY -------- Combat Airjet Combat Airjet Improved Signal Interpreter AWS/Thermal Long-range Missile Launcher [Rating: 71] Favorites ----------- Power Improved Deuterium Engine Engine Improved Deuterium Engine Power Core Light Nuclear Core Propulsion Advanced Treads Treads Advanced Treads Leg Armored Leg Wheel Wheel Hover Unit Combat Airjet Utility High-capacity Matter Pod Device Improved Heat Sink Storage High-capacity Matter Pod Processor Enhanced Optical Array Protection Weapon Shielding Weapon Greatsword Energy Gun AWS/Thermal Ballistic Gun Gauss Rifle Launcher Rocket Launcher Slashing Weapon Greatsword Build | -11 -10 -10 -10 -9 -8 -7 -7 -6 -6 -6 ------- Run | Scr Mat Min Exi Min Mat Fac Sto Fac Was Fac Slots Evolved 12 | 3 . 1 . 1 3 1 1 2 . . Power . | . . . . . . . . . . . Propulsion 4 | 1 . . . . 1 1 . 1 . . Utility 5 | 1 . 1 . 1 . . 1 1 . . Weapon 3 | 1 . . . . 2 . . . . . Parts Attached 52 | 5 2 2 2 5 4 1 8 15 . 8 Power 4 | 1 . 1 . . 1 . 1 . . . Engine 2 | 1 . . . . . . 1 . . . Core 2 | . . 1 . . 1 . . . . . Reactor . | . . . . . . . . . . . Propulsion 21 | 2 . . . . 1 1 5 7 . 5 Treads 6 | . . . . . 1 1 3 1 . . Leg 6 | . . . . . . . . 6 . . Wheel 4 | 2 . . . . . . 2 . . . Hover 5 | . . . . . . . . . . 5 Flight . | . . . . . . . . . . . Utility 13 | . 2 1 1 1 1 . 2 4 . 1 Device 5 | . . 1 . . . . 2 1 . 1 Storage 2 | . 1 . 1 . . . . . . . Processor 3 | . 1 . . . 1 . . 1 . . Hackware . | . . . . . . . . . . . Protection 3 | . . . . 1 . . . 2 . . Artifact . | . . . . . . . . . . . Weapon 14 | 2 . . 1 4 1 . . 4 . 2 Energy Gun 4 | . . . 1 2 . . . . . 1 Energy Cannon . | . . . . . . . . . . . Ballistic Gun 5 | 2 . . . . . . . 3 . . Ballistic Cannon . | . . . . . . . . . . . Launcher 2 | . . . . 2 . . . . . . Special Weapon . | . . . . . . . . . . . Impact Weapon . | . . . . . . . . . . . Slashing Weapon 3 | . . . . . 1 . . 1 . 1 Piercing Weapon . | . . . . . . . . . . . Special Melee Weapon . | . . . . . . . . . . . Unidentified Prototypes . | . . . . . . . . . . . Parts Lost 1 | . . . . . . . . 1 . . Power . | . . . . . . . . . . . Propulsion . | . . . . . . . . . . . Utility 1 | . . . . . . . . 1 . . Weapon . | . . . . . . . . . . . Highest Loss Streak 1 | . . . . . . . . 1 . . Average Slot Usage (%) 87 | . 84 94 97 87 82 76 84 88 87 88 Engine 4 | . 14 5 . . . . 5 6 6 6 Core 4 | . . 6 12 11 8 7 1 . . . Treads 9 | . . . . . 7 7 22 19 . . Leg 3 | . . . . . . . . 10 31 5 Wheel 12 | . 28 25 25 22 16 15 5 . . . Hover 1 | . . . . . . . . . . 25 Device 10 | . . 6 12 11 8 7 14 12 12 12 Storage 8 | . 8 12 12 11 8 7 7 6 6 6 Processor 8 | . 5 12 12 11 8 7 7 8 6 6 Protection 5 | . . . . 10 8 7 7 5 6 6 Energy Gun 4 | . . . 2 10 8 7 7 1 . 1 Ballistic Gun 9 | . 28 25 19 . . . . 9 12 12 Slashing Weapon 3 | . . . . . 6 7 7 6 6 6 Naked Turns . | . . . . . . . . . . . Heaviest Build 53 | 7 9 12 18 19 26 26 31 50 50 53 Greatest Support 115 | 25 25 25 25 25 25 25 93 115 89 115 Greatest Overweight (x) 1 | . . . . . 1 1 1 1 . 1 Average Overweight (x) . | . . . . . . 1 . . . . Largest Inventory Capacity 6 | 3 3 4 4 4 5 5 6 6 6 6 Average Capacity 4 | . 3 3 4 4 4 5 5 6 6 6 Most Carried 6 | 1 3 4 4 4 5 5 6 6 5 6 Average Carried 4 | . 1 3 3 3 4 4 5 5 5 5 Final Capacity 6 | 3 3 4 4 4 5 5 6 6 6 6 Final Carried 6 | 1 3 4 4 3 5 5 5 5 5 6 Class Distribution -------------------- 40% | Mutant 33% | Gladiator 22% | Scavenger-Gladiator Dominant Class ---------------- Mutant | -10/Materials Mutant | -10/Mines Mutant | -10/Exiles Mutant | -9/Mines Gladiator | -8/Materials Gladiator | -7/Factory Gladiator | -7/Storage Scavenger-Gladiator | -6/Factory Scavenger-Gladiator | -6/Waste Gladiator | -6/Factory Resources | -11 -10 -10 -10 -9 -8 -7 -7 -6 -6 -6 ----------- Run | Scr Mat Min Exi Min Mat Fac Sto Fac Was Fac Matter Collected 1358 | 231 261 162 10 80 86 . 90 412 . 26 Remotely . | . . . . . . . . . . . Salvage Created 2912 | . 191 139 . 165 273 92 1176 763 . 113 Parts 158 | . 16 22 . 12 21 4 56 24 . 3 Haulers Intercepted 4 | . 1 . . . 1 . 1 1 . . Recyclers Shooed . | . . . . . . . . . . . Parts Field Recycled . | . . . . . . . . . . . Retrieved Matter . | . . . . . . . . . . . Parts Self-Destructed . | . . . . . . . . . . . Prevented . | . . . . . . . . . . . Kills | -11 -10 -10 -10 -9 -8 -7 -7 -6 -6 -6 ------- Run | Scr Mat Min Exi Min Mat Fac Sto Fac Was Fac Combat Hostiles Destroyed 58 | . 7 8 . 9 8 1 13 9 . 3 Melee 10 | . . . . . . . 2 6 . 2 Guns 42 | . 7 8 . 3 8 1 11 3 . 1 AOE 6 | . . . . 6 . . . . . . Classes Destroyed 15 | . 4 . . 3 2 . 4 1 . 1 Worker 3 | . . . . . . . 3 . . . Builder 4 | . . . . . . . 2 2 . . Tunneler 1 | . . . . 1 . . . . . . Hauler 4 | . 1 . . . 1 . 1 1 . . Recycler 2 | . . . . . . . 2 . . . Operator 2 | . . . . . . . 1 1 . . Watcher 5 | . 1 . . . 2 . 2 . . . Swarmer 11 | . 6 . . . 3 . . . . 2 Grunt 27 | . 1 8 . 5 2 . 6 5 . . Brawler 3 | . . . . 2 . . 1 . . . Duelist 1 | . . . . . . . . . . 1 Sentry 11 | . . . . . 2 1 6 2 . . Hunter 2 | . . . . . 1 . . 1 . . Programmer 1 | . . . . . . . . 1 . . Assembled 2 | . . . . 2 . . . . . . Best Kill Streak 9 | . 4 4 . 9 4 1 8 4 . 3 Combat Bots Only 8 | . 4 4 . 8 4 1 3 4 . 3 Max Kills in Single Turn 2 | . 2 1 . 2 1 1 2 1 . 1 Gunslinging 1 | . 1 . . . . . . . . . Exploded 2 | . . . . 2 . . . . . . Melee 1 | . . . . . . . 1 1 . 1 Uniques/NPCs Destroyed . | . . . . . . . . . . . Combat | -11 -10 -10 -10 -9 -8 -7 -7 -6 -6 -6 -------- Run | Scr Mat Min Exi Min Mat Fac Sto Fac Was Fac Damage Taken 3079 | . 150 207 . 186 120 41 111 1494 . 770 Core 2162 | . 116 164 . 130 88 29 75 1038 . 522 Absorbed by Shields . | . . . . . . . . . . . Redirected to Core 1948 | . 91 142 . 121 58 17 67 948 . 504 Core Remaining (%) 97 | 100 . . . 99 95 . 97 . . . Volleys Fired 95 | . 24 20 . 6 . . . 34 . 11 Largest 3 | . 2 2 . 1 . . . 2 . 3 Hottest 136 | . 40 40 . 33 . . . 56 . 136 Shots Fired 276 | . 48 40 . 23 29 4 38 68 . 26 Gun 270 | . 48 40 . 17 29 4 38 68 . 26 Cannon . | . . . . . . . . . . . Launcher 6 | . . . . 6 . . . . . . Special . | . . . . . . . . . . . Kinetic 178 | . 48 40 . . . . . 68 . 22 Thermal 92 | . . . . 17 29 4 38 . . 4 Explosive 6 | . . . . 6 . . . . . . Electromagnetic . | . . . . . . . . . . . Robot Hit Streak 55 | . 15 20 . 16 45 49 55 39 . 47 Robot Miss Streak 3 | . 2 1 . 1 . . 1 1 . 3 Penetration Max 1 | . . . . . . . . 1 . . Secondary Targets 3 | . 1 1 . . . . . 1 . . Max Gunslinging Chain 1 | . 1 1 . . . . . 1 . . Autonomous 89 | . . . . 17 29 4 39 . . . Shots Hit Robots 297 | . 36 34 . 20 35 6 46 100 . 20 Core Hits 110 | . 11 17 . 11 11 2 28 24 . 6 Critical Hits 6 | . 1 . . . 1 . . 4 . . Critical Kills . | . . . . . . . . . . . Critical Parts Destroyed 6 | . 1 . . . 1 . . 4 . . Melee Attacks 150 | . . . . . 13 16 43 46 . 32 Impact . | . . . . . . . . . . . Slashing 150 | . . . . . 13 16 43 46 . 32 Piercing . | . . . . . . . . . . . Sneak Attacks 14 | . . . . . 1 2 5 5 . 1 Combat Hostiles . | . . . . . . . . . . . Follow-up Attacks . | . . . . . . . . . . . Damage Inflicted 10250 | . 488 424 . 882 1161 445 2267 3989 . 594 Guns 4824 | . 488 424 . 442 718 111 1025 1340 . 276 Cannons . | . . . . . . . . . . . Explosions 640 | . . . . 440 . . 200 . . . Melee 4786 | . . . . . 443 334 1042 2649 . 318 Ramming . | . . . . . . . . . . . Kinetic 2484 | . 488 424 . . . . . 1340 . 232 Thermal 2340 | . . . . 442 718 111 1025 . . 44 Explosive 640 | . . . . 440 . . 200 . . . Electromagnetic . | . . . . . . . . . . . Impact . | . . . . . . . . . . . Slashing 4786 | . . . . . 443 334 1042 2649 . 318 Piercing . | . . . . . . . . . . . Highest Corruption 1 | . . . . . . . . 1 1 1 Average Corruption 1 | . . . . . . . . 1 1 1 Corruption Purged . | . . . . . . . . . . . Effects 3 | . . . . . . . . 1 . 2 Data Loss (minor) 1 | . . . . . . . . 1 . . Targeting Errors 2 | . . . . . . . . . . 2 Overload Shots . | . . . . . . . . . . . Overflow Damage 1188 | . . . . . 92 254 302 487 . 53 Projectiles . | . . . . . . . . . . . Explosions 10 | . . . . . . . 10 . . . Melee 1178 | . . . . . 92 254 292 487 . 53 Knockbacks . | . . . . . . . . . . . Impact . | . . . . . . . . . . . Kinetic . | . . . . . . . . . . . Secondary . | . . . . . . . . . . . Self-Inflicted Damage 92 | . . . . 92 . . . . . . Shots 3 | . . . . 3 . . . . . . Rammed . | . . . . . . . . . . . Targets Rammed . | . . . . . . . . . . . Kicked . | . . . . . . . . . . . Crushed . | . . . . . . . . . . . Highest Temperature 90 | . 6 15 . . . . . 12 . 90 Average Temperature 20 | . 6 5 . . . . . 6 . 34 Received Heat Transfer 822 | . 12 153 . 30 18 18 45 513 . 33 Siege Activations . | . . . . . . . . . . . Robots Corrupted . | . . . . . . . . . . . Combat Hostiles . | . . . . . . . . . . . Parts Fried . | . . . . . . . . . . . Impact Corruptions . | . . . . . . . . . . . Robots Melted . | . . . . . . . . . . . Combat Hostiles . | . . . . . . . . . . . Parts Melted 2 | . . . . 1 . . 1 . . . Heat Transferred 2949 | . . . . 555 888 148 1258 . . 100 Parts Sabotaged . | . . . . . . . . . . . Parts Stolen . | . . . . . . . . . . . Parts Stripped . | . . . . . . . . . . . Power Chain Reactions . | . . . . . . . . . . . Missiles Intercepted . | . . . . . . . . . . . Alert | -11 -10 -10 -10 -9 -8 -7 -7 -6 -6 -6 ------- Run | Scr Mat Min Exi Min Mat Fac Sto Fac Was Fac Peak Influence 624 | . 214 285 . 233 377 146 624 298 60 189 Initial 243 | . . 70 . . 10 146 19 243 60 24 Average 155 | . 105 219 . 32 135 15 297 202 47 116 Maximum Alert Level 2 | . 1 1 . 1 1 . 2 1 . . Low Security (%) 65 | 100 80 35 . 95 69 100 22 53 100 100 Level 1 29 | . 19 64 . 4 30 . 43 46 . . Level 2 5 | . . . . . . . 34 . . . Level 3 . | . . . . . . . . . . . Level 4 . | . . . . . . . . . . . Level 5 . | . . . . . . . . . . . High Security . | . . . . . . . . . . . Max Security . | . . . . . . . . . . . Squads Dispatched 13 | . . . . . 2 2 6 2 . 1 Investigation 4 | . . . . . 1 1 2 . . . Extermination 1 | . . . . . . . . 1 . . Reinforcement 5 | . . . . . 1 1 1 1 . 1 Assault . | . . . . . . . . . . . Garrison 3 | . . . . . . . 3 . . . Intercept . | . . . . . . . . . . . Construction Impeded 1 | . . . . . . 1 . . . . Haulers Reinforced 1 | . . . . . . . 1 . . . Stealth | -11 -10 -10 -10 -9 -8 -7 -7 -6 -6 -6 --------- Run | Scr Mat Min Exi Min Mat Fac Sto Fac Was Fac Distress Signals 7 | . 2 . . . . . 1 2 . 2 Communications Jammed . | . . . . . . . . . . . Distress Signals . | . . . . . . . . . . . Times Spotted 101 | . 9 7 . 10 17 1 19 18 6 14 Peak Tracking Total 8 | . 4 3 . 7 7 1 6 6 6 8 Tactical Retreats 7 | . . . . . 1 . 2 3 . 1 Traps | -11 -10 -10 -10 -9 -8 -7 -7 -6 -6 -6 ------- Run | Scr Mat Min Exi Min Mat Fac Sto Fac Was Fac Traps Triggered 5 | . 1 . . . . . 1 2 . 1 Indirectly . | . . . . . . . . . . . Trap Hack Attempts . | . . . . . . . . . . . Triggered . | . . . . . . . . . . . Disarmed . | . . . . . . . . . . . Reprogrammed 6 | . . . . . . . 6 . . . Reused . | . . . . . . . . . . . Traps Extracted . | . . . . . . . . . . . Installed 3 | . . 3 . . . . . . . . Triggered 1 | . . 1 . . . . . . . . Exploded 1 | . . . . . . . 1 . . . Machines | -11 -10 -10 -10 -9 -8 -7 -7 -6 -6 -6 ---------- Run | Scr Mat Min Exi Min Mat Fac Sto Fac Was Fac Machines Disabled 7 | . . . . 1 1 . 3 2 . . Max in Single Turn 1 | . . . . 1 1 . 1 1 . . Machines Sabotaged 1 | . . . . . 1 . . . . . Garrisons Compromised . | . . . . . . . . . . . Overloaded Fab Kills . | . . . . . . . . . . . Fab Network Shutdowns . | . . . . . . . . . . . Hacking | -11 -10 -10 -10 -9 -8 -7 -7 -6 -6 -6 --------- Run | Scr Mat Min Exi Min Mat Fac Sto Fac Was Fac Machines Accessed 26 | . 4 . 5 . 4 3 8 1 . 1 Terminals 19 | . 4 . . . 3 3 7 1 . 1 Fabricators . | . . . . . . . . . . . Repair Stations . | . . . . . . . . . . . Recycling Units 1 | . . . . . 1 . . . . . Scanalyzers . | . . . . . . . . . . . Garrison Access 1 | . . . . . . . 1 . . . Total Hacks 103 | . 11 . 50 . 7 7 22 4 . 2 Successful 71 | . 3 . 50 . 5 1 10 1 . 1 Failed 32 | . 8 . . . 2 6 12 3 . 1 Catastrophic 5 | . 2 . . . . 2 . . . 1 Database Lockouts . | . . . . . . . . . . . Manual 44 | . 13 . 1 . 5 5 14 4 . 2 Terminals 48 | . 11 . . . 5 7 19 4 . 2 Fabricators . | . . . . . . . . . . . Repair Stations . | . . . . . . . . . . . Recycling Units 2 | . . . . . 2 . . . . . Scanalyzers . | . . . . . . . . . . . Garrison Access 3 | . . . . . . . 3 . . . Terminal Hacks 62 | . 3 . 50 . 2 1 6 . . . Record 50 | . . . 49 . 1 . . . . . Robot Analysis 4 | . 3 . . . 1 . . . . . Open Door 3 | . . . . . . . 3 . . . Unreport Threat 1 | . . . . . . 1 . . . . Locate Traps 2 | . . . . . . . 2 . . . Reprogram Traps 1 | . . . . . . . 1 . . . EX-Prototype ID Bank 1 | . . . 1 . . . . . . . Fabricator Hacks . | . . . . . . . . . . . Repair Station Hacks . | . . . . . . . . . . . Recycling Unit Hacks 2 | . . . . . 2 . . . . . Report Inventory 1 | . . . . . 1 . . . . . Retrieve Components 1 | . . . . . 1 . . . . . Scanalyzer . | . . . . . . . . . . . Garrison Access Hacks . | . . . . . . . . . . . Unauthorized Hacks 7 | . . . . . 1 . 4 1 . 1 Terminals 7 | . . . . . 1 . 4 1 . 1 Botnet 6 | . . . . . . . 4 1 . 1 Sabotage 1 | . . . . . 1 . . . . . Fabricators . | . . . . . . . . . . . Repair Stations . | . . . . . . . . . . . Recycling Units . | . . . . . . . . . . . Scanalyzers . | . . . . . . . . . . . Garrison Access . | . . . . . . . . . . . Data Cores Recovered 1 | . . . . . . . 1 . . . Used 1 | . . . . . . . 1 . . . Hacking Detections 19 | . 4 . . . 3 3 7 1 . 1 Full Trace Events 2 | . . . . . . 1 1 . . . Feedback Events . | . . . . . . . . . . . Feedback Blocked . | . . . . . . . . . . . Robot Schematics Acquired . | . . . . . . . . . . . Robots Built . | . . . . . . . . . . . Matter . | . . . . . . . . . . . Time . | . . . . . . . . . . . Total Robot Build Rating . | . . . . . . . . . . . Part Schematics Acquired . | . . . . . . . . . . . Parts Built . | . . . . . . . . . . . Matter . | . . . . . . . . . . . Time . | . . . . . . . . . . . Total Part Build Rating . | . . . . . . . . . . . Parts Repaired . | . . . . . . . . . . . Time . | . . . . . . . . . . . Parts Recycled . | . . . . . . . . . . . Recycled Matter . | . . . . . . . . . . . Retrieved Matter . | . . . . . . . . . . . Retrieved Components 3 | . . . . . 3 . . . . . Parts Scanalyzed . | . . . . . . . . . . . Part Schematics Acquired . | . . . . . . . . . . . Parts Damaged . | . . . . . . . . . . . Bothacking | -11 -10 -10 -10 -9 -8 -7 -7 -6 -6 -6 ------------ Run | Scr Mat Min Exi Min Mat Fac Sto Fac Was Fac Used RIF Installer . | . . . . . . . . . . . Robots Hacked . | . . . . . . . . . . . Non-combat . | . . . . . . . . . . . Combat . | . . . . . . . . . . . Robot Hacks Applied . | . . . . . . . . . . . Relay Couplers Released . | . . . . . . . . . . . Robots Rewired 1 | . . . . . . . 1 . . . Allies Hacked . | . . . . . . . . . . . Hacks Repelled . | . . . . . . . . . . . Allies | -11 -10 -10 -10 -9 -8 -7 -7 -6 -6 -6 -------- Run | Scr Mat Min Exi Min Mat Fac Sto Fac Was Fac Total Allies 14 | . . 3 . . . . 10 . 1 . Largest Group 10 | . . 3 3 3 1 . 10 . 1 . Highest-Rated Group 173 | . . 40 40 40 8 . 173 . 31 . Highest-Rated Ally 31 | . . 16 16 16 8 . 29 . 31 . Total Orders 1 | . . . . . . . 1 . . . ROAM 1 | . . . . . . . 1 . . . Ally Attacks 93 | . . . . 4 . . 82 . 7 . Total Damage 1386 | . . . . 44 . . 1214 . 128 . Kills 15 | . . . . 1 . . 14 . . . Allies Corrupted . | . . . . . . . . . . . Allies Melted . | . . . . . . . . . . . Intel | -11 -10 -10 -10 -9 -8 -7 -7 -6 -6 -6 ------- Run | Scr Mat Min Exi Min Mat Fac Sto Fac Was Fac Robot Analysis Total 4 | . 3 . . . 1 . . . . . Derelict Logs Recovered 1 | . . . . 1 . . . . . . Drone Launches . | . . . . . . . . . . . Drone Recoveries . | . . . . . . . . . . . Exploration | -11 -10 -10 -10 -9 -8 -7 -7 -6 -6 -6 ------------- Run | Scr Mat Min Exi Min Mat Fac Sto Fac Was Fac Turns Passed 4050 | 31 355 249 453 501 291 235 562 1003 77 293 Spaces Moved 3167 | 29 334 187 523 468 277 200 353 500 65 231 Core 2 | 2 . . . . . . . . . . Treads 527 | . . . . . . . 215 312 . . Legs 274 | . . . . . . . . 188 65 21 Wheels 2154 | 27 334 187 523 468 277 200 138 . . . Hover 210 | . . . . . . . . . . 210 Flight . | . . . . . . . . . . . Fastest Speed 50 | 50 80 80 80 80 80 90 80 120 120 64 Average Speed 94 | 77 80 80 80 80 85 90 121 135 120 70 Slowest Speed 170 | 80 80 80 80 80 90 90 165 150 120 170 Overloaded Moves . | . . . . . . . . . . . Propulsion Burnouts . | . . . . . . . . . . . Robots Hopped . | . . . . . . . . . . . Cave-ins Triggered 2 | . . . . . . . . . . 2 Exploration Rate (%) 49 | 4 55 49 92 95 48 10 78 19 84 11 Regions Visited 10 Branch Regions 4 Pre-discovered Areas 1 | . . . 1 . . . . . . . Known Exits Taken 1 | . . . . . . 1 . . . . Unknown Exits Taken 7 | 1 1 1 1 1 1 . 1 . . . Scrap Searched 1 | . . 1 . . . . . . . . Spaces Dug 84 | . . . . . 7 14 30 5 . 28 Terrain Destroyed 127 | . . . . 36 11 14 32 6 . 28 Melee 81 | . . . . . 7 14 29 5 . 26 Projectile 11 | . . . . 1 4 . 3 1 . 2 AOE 35 | . . . . 35 . . . . . . Terrain Rammed . | . . . . . . . . . . . Walls Destroyed . | . . . . . . . . . . . Machines Disabled . | . . . . . . . . . . . Actions | -11 -10 -10 -10 -9 -8 -7 -7 -6 -6 -6 --------- Run | Scr Mat Min Exi Min Mat Fac Sto Fac Was Fac Total 3816 | 34 373 246 558 591 305 222 429 698 64 296 Wait 228 | . 7 20 29 99 5 4 7 57 . . Move 3158 | 28 333 186 522 467 276 199 352 500 64 231 Hop . | . . . . . . . . . . . Pick Up 23 | 1 3 2 1 2 2 1 3 6 . 2 Fast Attach 35 | 5 2 2 1 . 3 1 4 10 . 7 Attach 10 | . . . . 5 . . 1 4 . . Detach 10 | . . . . 4 1 . . 4 . 1 Swap 7 | . . . 1 . 1 . 3 1 . 1 Drop 41 | . 1 2 4 2 2 1 8 13 . 8 Fire 95 | . 24 20 . 6 . . . 34 . 11 Melee 150 | . . . . . 13 16 43 46 . 32 Ram . | . . . . . . . . . . . Kick . | . . . . . . . . . . . Crush . | . . . . . . . . . . . Escape Stasis . | . . . . . . . . . . . Rewire 3 | . . . . . . . 3 . . . Trap 3 | . . 3 . . . . . . . . Miscellaneous 53 | . 3 11 . 6 2 . 5 23 . 3 Route ------- -11/Scrapyard -10/Materials (discovered 2 exits: [*Mat] / [*Min]) -10/Mines -10/Exiles -9/Mines (discovered 2 exits: *Mat x2) -8/Materials (discovered 2 exits: *Fac x2) -7/Factory (discovered 2 exits: *Fac / *Sto) -7/Storage -6/Factory -6/Waste -6/Factory History --------- Turn | Location | Event 1 | -11/Scrapyard | Upgraded with Propulsion slot (x1) 1 | -11/Scrapyard | Upgraded with Utility slot (x1) 1 | -11/Scrapyard | Upgraded with Weapon slot (x1) 14 | -11/Scrapyard | Discovered new exit (range 14) 32 | -11/Scrapyard | Entered Materials 137 | -10/Materials | Discovered new exit (range 14) 171 | -10/Materials | Discovered new exit (range 15) 317 | -10/Materials | Build established: Mutant 387 | -10/Materials | Entered Mines 396 | -10/Mines | Reached level 2 405 | -10/Mines | Upgraded with Utility slot (x1) 432 | -10/Mines | Assembled infested the area 562 | -10/Mines | Assisted by bots powering up and referring to "LRC-V3" 606 | -10/Mines | Found a hidden stash of uninstalled traps 618 | -10/Mines | Deemed a non-threat by the Exiles lab entrance 618 | -10/Mines | Discovered new exit (range 5) 636 | -10/Mines | Entered Exiles 636 | -10/Exiles | Accompanied by 3 allies 658 | -10/Exiles | Met 8R-AWN 671 | -10/Exiles | Met EX-HEX 713 | -10/Exiles | Met EX-DEC 725 | -10/Exiles | Visited The Gauntlet 823 | -10/Exiles | Learned location of Zion (-6) 848 | -10/Exiles | Discovered new exit (range 10) 915 | -10/Exiles | Met EX-BIN 949 | -10/Exiles | Aligned with FarCom system 950 | -10/Exiles | Given EX-Vault access code 976 | -10/Exiles | Opened EX-Vault 981 | -10/Exiles | Found AWS/Thermal 1000 | -10/Exiles | Warned to stay clear of 0b10 Research branches 1089 | -10/Exiles | Left Exiles lab with AWS/Thermal 1089 | -10/Exiles | Entered Mines 1089 | -9/Mines | Accompanied by 3 allies 1091 | -9/Mines | Reached level 3 1091 | -9/Mines | Upgraded with Utility slot (x1) 1243 | -9/Mines | Received a Rocket Launcher from a helpful Derelict 1401 | -9/Mines | Excavation squad dispatched 1401 | -9/Mines | A large section of the Mines collapsed 1459 | -9/Mines | Discovered new exit (range 8) 1465 | -9/Mines | Reached level 4 1472 | -9/Mines | Discovered new exit (range 15) 1495 | -9/Mines | Destroyed 8 combat bots 1590 | -9/Mines | Entered Materials 1590 | -8/Materials | Accompanied by 1 ally 1592 | -8/Materials | Reached level 5 1592 | -8/Materials | Reached level 6 1593 | -8/Materials | Upgraded with Propulsion slot (x1) 1593 | -8/Materials | Upgraded with Weapon slot (x1) 1636 | -8/Materials | Upgraded with Weapon slot (x1) 1720 | -8/Materials | Reached level 7 1743 | -8/Materials | Discovered new exit (range 4) 1863 | -8/Materials | Discovered new exit (range 21) 1881 | -8/Materials | Entered Factory 1882 | -7/Factory | Identified exit to Storage 1882 | -7/Factory | Upgraded with Propulsion slot (x1) 1883 | -7/Factory | Reached level 8 1883 | -7/Factory | Reached level 9 1935 | -7/Factory | Build established: Gladiator 2028 | -7/Factory | Discovered new exit (range 23) 2116 | -7/Factory | Entered Storage 2118 | -7/Storage | Reached level 10 2118 | -7/Storage | Upgraded with Utility slot (x1) 2191 | -7/Storage | Found Prototype Launcher 2240 | -7/Storage | Reached level 11 2537 | -7/Storage | Assisted by bots powering up and referring to "LRC-V3" 2563 | -7/Storage | Reached level 12 2598 | -7/Storage | Reached level 13 2639 | -7/Storage | Discovered new exit (range 23) 2678 | -7/Storage | Entered Factory 2680 | -6/Factory | Reached level 14 2898 | -6/Factory | Upgraded with Propulsion slot (x1) 2898 | -6/Factory | Upgraded with Utility slot (x1) 3202 | -6/Factory | Build established: Scavenger-Gladiator 3212 | -6/Factory | Core integrity fell below 50% 3277 | -6/Factory | Discovered new exit (range 16) 3404 | -6/Factory | Reached level 15 3681 | -6/Factory | Sucked down chute 3681 | -6/Factory | Entered Waste 3682 | -6/Waste | Met a frightened Derelict 3691 | -6/Waste | Spotted C-40 Crusher 3692 | -6/Waste | Spotted C-40 Crusher 3701 | -6/Waste | Spotted C-40 Crusher 3703 | -6/Waste | Spotted C-40 Crusher 3715 | -6/Waste | Spotted C-40 Crusher 3741 | -6/Waste | Spotted C-40 Crusher 3747 | -6/Waste | Discovered new exit (range 10) 3758 | -6/Waste | Entered Factory 3847 | -6/Factory | Reached level 16 3912 | -6/Factory | Crushed by falling debris 4051 | -6/Factory | Crushed by falling debris 4051 | -6/Factory | Core integrity fell below 20% 4051 | -6/Factory | Destroyed by Y-54 Guardian with Flak Gun Last Messages --------------- 03969_ R-10 Processor collects Greatsword. 03969_ Acquired Gatling Laser. 03977_ Sneak attack on R-10 Processor. 03977_ Destroyed Imp. Ion Engine. 03977_ Destroyed Hpw. Tractor Beam. 03980_ Slug penetrates Wall. 03994_ Dropped Adv. Heat Sink. 04002_ Slug penetrates O-16 Technician. 04002_ Slug penetrates Wall. 04002_ O-16 Technician distress signal alerts nearby ally. 04002_ O-16 Technician: "IFF HANDSHAKE FAILED. SECURING TERMINAL." 04008_ U-05 Engineer lays Concrete. 04008_ W-25 Informer distress signal alerts nearby ally. 04008_ ALERT: Hostiles spotted, dispatching reinforcements to Terminal F010. 04035_ Slug penetrates Nuclear Reactor. 04049_ Slug penetrates Y-54 Guardian. 04051_ The unstable cave ceiling collapses. 04051_ Crushed by falling debris. [Achievement: This Is Interesting...] Map ----- +----------------------------------------------------+ | ] #?????????????????????????????????????? | | ###### #?????????????????????????????????????? | | #?????# ???????????????????????????????????????? | | #?????# #??????????????????????????????????????? | | #?????# #??????????????????????????????????????? | | #?????# #??????????????????????????????????????? | | #?????# ###########????????????????????????????? | | ######??# !== ?????????????????????????????? | | #### !== #??????????????????????????????? | | #"" !== ! #??????????????????????????????? | | #"F b #??????????????????????????????? | | #""" #??????????????????????????????? | | #?"" #??????????????????????????????? | | #### ] """ #??????????????????????????????? | | ## """ ]#??????????????????????????????? | | " ## """ #??????????????????????????????? | | " + Y #??????????????????????????????? | | " ## // #??????????????????????????????? | | " ## / #??????????????????????????????? | | ####+####### #??????????????????????????????? | | ######? ???##+########???????????????????????? | | ?????# ?# g #???????????????????????? | | ?????# [ = # """g""" #???????????????????????? | | ?????# # """ """ #???????????????????????? | | ?????# """ """ # """g"""Y##??????????????????????? | | ?????# """ """ # @##?????????????????????? | | ?????# """ """ # ! ###?????????????????????? | | ?????# # ###?????????????????????? | | ?????########### ! #???????????????????????? | | ???????????????### #######???????????????????????? | | ?????????????????###?????????????????????????????? | | ?????????????????????????????????????????????????? | | ?????????????????????????????????????????????????? | | ?????????????????????????????????????????????????? | | ?????????????????????????????????????????????????? | | ?????????????????????????????????????????????????? | | ?????????????????????????????????????????????????? | | ?????????????????????????????????????????????????? | | ?????????????????????????????????????????????????? | | ?????????????????????????????????????????????????? | | ?????????????????????????????????????????????????? | | ?????????????????????????????????????????????????? | | ?????????????????????????????????????????????????? | | ?????????????????????????????????????????????????? | | ?????????????????????????????????????????????????? | | ?????????????????????????????????????????????????? | | ?????????????????????????????????????????????????? | | ?????????????????????????????????????????????????? | | ?????????????????????????????????????????????????? | | ?????????????????????????????????????????????????? | +----------------------------------------------------+ Best States ------------- Heat Dissipation 44 Energy Generation 16 Energy Capacity 290 Matter Stores 500 Matter Capacity 500 Sight Range 23 Robot Scan Range 2 Terrain Scan Density 10 Armor Coverage 600 Resistance: KI 30 Resistance: TH 30 Resistance: EX 25 Resistance: EM 20 Resistance: I 20 Resistance: S 20 Resistance: P 20 Weapon Shielding 33 Melee Speed Boost 20 Evasion (%) 52 Targeting Accuracy 5 Armor Integrity Analysis 50 Recoil Reduction 5 Offensive Hacking 10 Item Schematics ----------------- None Robot Schematics ------------------ None Fabricated ------------ Nothing Alien Tech Used ----------------- None Achievements -------------- This Is Interesting... Challenges ------------ None RPGLIKE | -11 -10 -10 -10 -9 -8 -7 -7 -6 -6 -6 --------- Run | Scr Mat Min Exi Min Mat Fac Sto Fac Was Fac Levels Raised 15 | . . 1 . 2 3 2 4 2 . 1 XP Earned 26608 | 4000 870 1500 350 2063 5025 3486 5544 3135 200 435 XP Spent 21530 | 3580 . 1800 . 1600 4050 4500 2900 3100 . . Upgrades 40 | 15 . 2 . 5 5 9 2 2 . . Propulsion Slot 4 | 1 . . . . 1 1 . 1 . . Utility Slot 5 | 1 . 1 . 1 . . 1 1 . . Weapon Slot 3 | 1 . . . . 2 . . . . . Core Integrity 8 | 8 . . . . . . . . . . Mass Support 1 | 1 . . . . . . . . . . Inventory Capacity 6 | 3 . 1 . . 1 . 1 . . . Sight Range 1 | . . . . . 1 . . . . . Sensor Range 1 | . . . . 1 . . . . . . Melee Accuracy 6 | . . . . . . 6 . . . . KI Resistance % 2 | . . . . 1 . 1 . . . . TH Resistance % 2 | . . . . 1 . 1 . . . . EX Resistance % 1 | . . . . 1 . . . . . . Protomatter Created 876 | . 26 292 . 96 159 . 173 109 . 21 Integrity Restored 1161 | . 51 229 . 126 47 . 120 525 . 63 Core 1161 | . 51 229 . 126 47 . 120 525 . 63 Protomatter Decayed 809 | . 9 137 . 52 124 . 487 . . . Game ------ Seed NeutrinoBackupReactor Manual? 0 Play Time 01:08:09 Cumulative 18.7 hours Start 2021.02.20 @ 16:29:29 End 2021.02.20 @ 17:38:02 Sessions 1 Manual Loads 0 Difficulty Adventurer Special Mode Winter2019/RPGLIKE Game No. 6 Rogue 0 Adventurer 6 Explorer 0 Win Type - Total 1 Types 1/0/0/0/0/0/0/0/0 Lore% 34 Gallery% 32 Achievement% 35 Wizard Run 0 Options --------- ASCII 0 Keyboard 1 Movement Vi Keybinds 0 Fullscreen 1 Font 18/SmallcapsGlow Map View 76x50 Tactical HUD 1 Map Filters NONE Filters NONE Steam 0 RUN: bab0525b-d769-429d-a0ea-1f76f8a12e1d